fUST/lending_fUST_20241010
["ID","MTS","AMOUNT","RATE_DAILY","PERIOD"]
[340101914,1728547760893,-500.0,0.00054794,120]
[340101915,1728547760917,-500.0,0.00054794,120]
[340101916,1728547760940,-500.0,0.00054794,120]
[340101917,1728547760963,-265.79317838,0.00054794,120]
[340101918,1728547760988,-153.90856223,0.00054794,120]
[340101919,1728547761014,-500.0,0.00054794,120]
[340101920,1728547761038,-206.55797621,0.00054794,120]
[340101921,1728547761061,-500.0,0.00054794,120]
[340101922,1728547761084,-500.0,0.00054794,120]
[340101923,1728547761106,-222.40851932,0.00054794,120]
[340101924,1728547761130,-500.0,0.00054794,120]
[340101925,1728547761153,-168.79996511,0.00054794,120]
[340101926,1728547761176,-1416.33,0.00054794,120]
[340101927,1728547761198,-500.0,0.00054794,120]
[340101928,1728547761220,-213.08545932,0.00054794,120]
[340101929,1728547761244,-517.86816125,0.00054794,120]
[340101930,1728547761273,-500.0,0.00054794,120]
[340101931,1728547761296,-500.0,0.00054794,120]
[340101932,1728547761319,-500.23496241,0.00054794,120]
[340101933,1728547761343,-506.645138,0.00054794,120]
[340101934,1728547761365,-500.0,0.00054794,30]
[340101935,1728547761390,-500.0,0.00054794,120]
[340101936,1728547761414,-500.0,0.00054794,120]
[340101937,1728547761438,-318.12065786,0.00054794,120]
[340101938,1728547761461,-500.0,0.00054794,120]
[340101939,1728547761484,-246.88358829,0.00054794,120]
[340101940,1728547761508,-198.00262403,0.00054794,120]
[340101941,1728547761533,-500.0,0.00054794,120]
[340101942,1728547761557,-251.54851359,0.00054794,120]
[340101943,1728547761580,-185.43827984,0.00054794,120]
[340101944,1728547761603,-1996.94,0.00054794,120]
[340101945,1728547761626,-240.23006219,0.00054794,120]
[340101946,1728547761650,-500.0,0.00054794,120]
[340101947,1728547761675,-3321.25,0.00054794,120]
[340101948,1728547761700,-500.0,0.00054794,18]
[340101949,1728547761725,-500.0,0.00054794,120]
[340101950,1728547761754,-500.0,0.00054794,30]
[340101951,1728547761779,-500.0,0.00054794,120]
[340101952,1728547761801,-524.34931467,0.00054794,120]
[340101953,1728547761828,-500.0,0.00054794,120]
[340101954,1728547761851,-506.47692669,0.00054794,120]
[340101955,1728547761875,-500.0,0.00054794,120]
[340101956,1728547761899,-500.0,0.00054794,120]
[340101957,1728547761922,-500.0,0.00054794,120]
[340101958,1728547761945,-888.0,0.00054794,120]
[340101959,1728547761968,-502.28273507,0.00054794,120]
[340101960,1728547761991,-500.0,0.00054794,120]
[340101961,1728547762015,-500.0,0.00054794,120]
[340101962,1728547762039,-155.46,0.00054795,30]
[340101963,1728547766506,4794.74705424,0.00054794,120]
[340102027,1728547831906,-400.0,0.00031828,2]
[340102029,1728547831918,-400.0,0.00031828,2]
[340102031,1728547831928,-10784.67217843,0.00031829,2]
[340102042,1728547838206,-1177.39325347,0.00031829,2]
[340102044,1728547838216,-160.108367,0.0003202,2]
[340102046,1728547838226,-160.108367,0.00032354,2]
[340102048,1728547838236,-160.108367,0.00032687,2]
[340102049,1728547838246,-289.0,0.00033,2]
[340102050,1728547838256,-160.108367,0.00033021,2]
[340102051,1728547838268,-289.0,0.00033151,2]
[340102052,1728547838278,-160.108367,0.00033355,2]
[340102053,1728547838288,-300.55,0.00033384,2]
[340102055,1728547838298,-160.108367,0.00033689,2]
[340102056,1728547838307,-223.58390268,0.000339,2]
[340102058,1728547838316,-4668.7464995,0.00033914,2]
[340102060,1728547838327,-999.0,0.00034,2]
[340102062,1728547838337,-4668.7464996,0.00034235,2]
[340102064,1728547838347,-560.0,0.00034238,2]
[340102066,1728547838357,-289.0,0.00034521,2]
[340102068,1728547838367,-344.164444,0.00034795,2]
[340102070,1728547838376,-298.359,0.00034958,2]
[340102072,1728547838386,-151.01,0.00034958,2]
[340102074,1728547838395,-513.142,0.00034958,2]
[340102076,1728547838405,-500.0,0.0003501,2]
[340102077,1728547838414,-3712.1472744,0.0003579,2]
[340102078,1728547838424,-413.4583545,0.0003589,2]
[340102079,1728547838433,-413.4583545,0.0003589,2]
[340102080,1728547838443,-413.4583545,0.0003589,2]
[340102081,1728547838452,-413.4583545,0.0003589,2]
[340102082,1728547838462,-413.4583545,0.0003589,2]
[340102083,1728547838472,-338.8153364,0.0003589,2]
[340102084,1728547838481,-161.77991,0.0003616,2]
[340102085,1728547838491,-153.0,0.00036164,2]
[340102086,1728547838501,-153.0,0.00036164,2]
[340102087,1728547838510,-153.0,0.00036164,2]
[340102088,1728547838520,-153.0,0.00036164,2]
[340102089,1728547838530,-292.0,0.00036247,2]
[340102090,1728547838539,-223.58390268,0.00036559,2]
[340102091,1728547838549,-151.0,0.0003656,2]
[340102092,1728547838559,-15701.19112371,0.0003656,2]
[340102093,1728547838568,-1000.0,0.000366,5]
[340102094,1728547838579,-151.884963,0.00036647,2]
[340102095,1728547838588,-15704.01780313,0.0003665,5]
[340102096,1728547838620,-16658.01942527,0.0003665,5]
[340102097,1728547838630,-39148.6704336,0.0003665,5]
[340102098,1728547838639,-1000.0,0.00036655,2]
[340102099,1728547838649,-500.0,0.00036659,15]
[340102100,1728547838658,-232.4523209,0.00036659,15]
[340102101,1728547838668,-297.96898733,0.00036659,15]
[340102102,1728547838678,-500.0,0.00036659,15]
[340102103,1728547838687,-579.0769374,0.00036659,15]
[340102104,1728547838697,-500.0,0.0003666,2]
[340102105,1728547838708,-250.67131728,0.0003666,2]
[340102106,1728547838717,-32362.0372284,0.0003666,5]
[340102107,1728547838727,-39148.6704336,0.0003666,5]
[340102108,1728547838737,-47289.09639286,0.0003667,3]
[340102109,1728547838749,-500.0,0.0003667,3]
[340102127,1728547839995,-2427.04866931,0.0003667,3]
[340102165,1728547846062,-8186.19801723,0.0003667,3]
[340102166,1728547846071,-398.73978154,0.00036673,5]
[340102167,1728547846082,-893.85390461,0.00036722,15]
[340102168,1728547846092,-642.4496374,0.00036722,15]
[340102169,1728547846101,-374.14449475,0.00036722,15]
[340102170,1728547846111,-893.85390461,0.00036722,15]
[340102171,1728547846120,-893.85390461,0.00036722,15]
[340102172,1728547846129,-500.0,0.00036722,15]
[340102173,1728547846138,-893.85390461,0.00036722,15]
[340102174,1728547846148,-242.14005089,0.00036722,15]
[340102175,1728547846157,-177.97939572,0.00036722,15]
[340102176,1728547846167,-893.85390461,0.00036722,15]
[340102177,1728547846176,-893.85390461,0.00036722,15]
[340102178,1728547846186,-893.85390461,0.00036722,15]
[340102179,1728547846195,-893.85390461,0.00036722,15]
[340102180,1728547846204,-893.85390461,0.00036722,15]
[340102181,1728547846215,-893.85390461,0.00036722,15]
[340102182,1728547846224,-893.85390461,0.00036722,15]
[340102183,1728547846233,-893.85390461,0.00036722,15]
[340102184,1728547846242,-893.85390461,0.00036722,15]
[340102185,1728547846252,-893.85390461,0.00036722,15]
[340102186,1728547846262,-32362.0372284,0.00036723,5]
[340102187,1728547846273,-39148.6704336,0.00036723,5]
[340102188,1728547846283,-500.0,0.00036773,5]
[340102189,1728547846292,-500.0,0.00036773,5]
[340102190,1728547846302,-240.0,0.00036832,2]
[340102191,1728547846312,-153.0,0.00036863,120]
[340102192,1728547846322,-153.0,0.00036863,120]
[340102193,1728547846332,-153.0,0.00036865,120]
[340102194,1728547846342,-153.0,0.00036865,120]
[340102195,1728547846351,-153.0,0.00036865,120]
[340102196,1728547846361,-153.0,0.00036865,120]
[340102197,1728547846370,-153.0,0.00036866,120]
[340102198,1728547846380,-153.0,0.00036866,120]
[340102199,1728547846390,-64724.0744569,0.00036878,5]
[340102200,1728547846400,-78297.3408672,0.00036878,5]
[340102201,1728547846410,-150.305626,0.000369,2]
[340102202,1728547846421,-57782.794121,0.0003698,2]
[340102203,1728547846431,-163.023898,0.00037064,2]
[340102204,1728547846441,-171.894199,0.00037064,2]
[340102205,1728547846451,-1037.914628,0.00037064,2]
[340102206,1728547846461,-15052.05427227,0.00037147,4]
[340102207,1728547846471,-32362.0372284,0.00037268,5]
[340102208,1728547846482,-39148.6704336,0.00037268,5]
[340102209,1728547846491,-500.0,0.00037273,5]
[340102210,1728547846501,-2651.77942292,0.00037273,2]
[340102211,1728547846511,-42996.29133144,0.00037278,2]
[340102212,1728547846520,-500.0,0.00037284,120]
[340102213,1728547846530,-500.0,0.00037284,120]
[340102214,1728547846540,-163.75,0.000373,14]
[340102215,1728547846549,-32362.0372284,0.00037357,5]
[340102216,1728547846559,-39148.6704336,0.00037357,5]
[340102217,1728547846570,-32362.0372284,0.00037367,5]
[340102218,1728547846581,-504.74557452,0.00037373,5]
[340102219,1728547846591,-158422.97279549,0.00037377,2]
[340102220,1728547846601,-178409.07851364,0.00037377,2]
[340102221,1728547846610,-150.112233,0.000374,5]
[340102222,1728547846621,-1037.914628,0.00037516,2]
[340102223,1728547846631,-21192.33253248,0.00037555,120]
[340102224,1728547846640,-177.098201,0.00037968,2]
[340102225,1728547846650,-163.023898,0.00037968,2]
[340102226,1728547846660,-171.894199,0.00037968,2]
[340102227,1728547846670,-1037.914628,0.00037968,2]
[340102228,1728547846680,-1500.0,0.00038,3]
[340102229,1728547846691,-379.88423943,0.00038142,5]
[340102230,1728547846702,-519.0,0.000383,2]
[340102231,1728547846712,-500.0,0.00038356,2]
[340102232,1728547846722,-413.3241676,0.00038356,2]
[340102233,1728547846732,-209.799474,0.00038356,2]
[340102234,1728547846743,-413.4583545,0.00038356,2]
[340102235,1728547846753,-306.0,0.00038356,2]
[340102236,1728547846764,-160.0,0.0003837,3]
[340102237,1728547846774,-240.3183043,0.0003837,5]
[340102238,1728547846784,-160.0,0.0003837,3]
[340102239,1728547846794,-160.0,0.0003837,5]
[340102240,1728547846803,-295.11,0.000384,2]
[340102241,1728547846814,-500.0,0.00038478,5]
[340102242,1728547846824,-220.999999,0.00038521,2]
[340102243,1728547846834,-13756.44079504,0.00038521,2]
[340102244,1728547846847,-1238.98409162,0.00038521,2]
[340102245,1728547846858,-3024.74409243,0.00038521,2]
[340102246,1728547846868,-89323.56359103,0.00038521,2]
[340102247,1728547846877,-500.0,0.00038521,2]
[340102248,1728547846890,-300.0,0.00038521,2]
[340102249,1728547846901,-793.82535226,0.00038521,2]
[340102250,1728547846911,-6452.18829287,0.00038521,2]
[340102251,1728547846922,-514.50167567,0.00038521,2]
[340102252,1728547846933,-291.170657,0.00038521,2]
[340102253,1728547846943,-4153.36662237,0.00038521,2]
[340102254,1728547846953,-320.57556703,0.00038521,2]
[340102255,1728547846963,-286.03843831,0.00038521,2]
[340102256,1728547846974,-1185.90125381,0.00038521,2]
[340102257,1728547846984,-50723.25285016,0.00038521,2]
[340102258,1728547846994,-163.40684964,0.00038521,2]
[340102259,1728547847004,-4124.13878697,0.00038521,2]
[340102260,1728547847014,-10105.71128214,0.00038521,2]
[340102261,1728547847025,-1164.03856276,0.00038521,2]
[340102262,1728547847034,-9838.8826503,0.00038521,2]
[340102263,1728547847044,-154.4168779,0.00038521,2]
[340102264,1728547847140,-173.5007353,0.00038521,2]
[340102265,1728547847151,-15323.82125366,0.00038521,2]
[340102266,1728547847160,-20831.95955752,0.00038521,2]
[340102267,1728547847171,-1518.14623752,0.00038521,2]
[340102268,1728547847182,-437.4414426,0.00038521,2]
[340102269,1728547847192,-223.44556668,0.00038521,2]
[340102270,1728547847202,-1019.22463241,0.00038521,2]
[340102271,1728547847212,-153909.37431485,0.00038521,2]
[340102272,1728547847222,-18103.31953229,0.00038521,2]
[340102273,1728547847232,-955.68072545,0.00038521,2]
[340102274,1728547847242,-1524.00951145,0.00038521,2]
[340102275,1728547847251,-905.25529603,0.00038521,2]
[340102276,1728547847261,-3355.11399771,0.00038521,2]
[340102277,1728547847272,-175.53617676,0.00038521,2]
[340102278,1728547847283,-458.76469019,0.00038521,2]
[340102279,1728547847293,-831.01275766,0.00038521,2]
[340102280,1728547847304,-222.59694947,0.00038521,2]
[340102281,1728547847313,-886.319,0.00038521,2]
[340102282,1728547847323,-1480.0,0.00038521,2]
[340102283,1728547847345,-503.6866096,0.00038521,5]
[340102284,1728547847354,-1000.0,0.00038521,120]
[340102285,1728547847364,-1000.0,0.00038521,120]
[340102286,1728547847375,-999.0,0.00038521,10]
[340102287,1728547847385,-150.0,0.00038573,5]
[340102288,1728547847396,-1000.0,0.00038642,5]
[340102289,1728547847406,-500.0,0.00038654,120]
[340102290,1728547847416,-500.0,0.00038654,120]
[340102291,1728547847427,-500.0,0.00038904,2]
[340102292,1728547847437,-27622.48804595,0.00039,2]
[340102293,1728547847447,-250.0,0.00039121,5]
[340102294,1728547847456,-163.660002,0.00039154,2]
[340102295,1728547847467,-192.345866,0.00039154,2]
[340102296,1728547847476,-164.349012,0.00039154,2]
[340102297,1728547847486,-216.1491477,0.00039178,2]
[340102298,1728547847496,-823.0540425,0.00039178,2]
[340102299,1728547847505,-153.5591427,0.00039178,2]
[340102300,1728547847515,-209.799474,0.00039178,2]
[340102301,1728547847524,-826.6483352,0.00039178,2]
[340102302,1728547847534,-500.0,0.00039452,2]
[340102303,1728547847543,-700.0,0.00039521,120]
[340102304,1728547847554,-150.0,0.00039521,62]
[340102305,1728547847564,-150.0,0.00039521,62]
[340102306,1728547847574,-150.0,0.00039521,62]
[340102307,1728547847584,-150.0,0.00039521,62]
[340102308,1728547847593,-150.0,0.00039521,62]
[340102309,1728547847603,-192.345866,0.00039643,2]
[340102310,1728547847613,-256.69025218,0.00039668,5]
[340102311,1728547847624,-2651.77942288,0.00039677,2]
[340102312,1728547847634,-163.660002,0.00039806,2]
[340102313,1728547847644,-3712.14727438,0.00039871,2]
[340102314,1728547847655,-160.17,0.0004,2]
[340102315,1728547847665,-500.0,0.0004,2]
[340102316,1728547847675,-987.41781376,0.00040024,120]
[340102317,1728547847684,-500.0,0.00040024,120]
[340102318,1728547847694,-192.345866,0.00040132,2]
[340102319,1728547847705,-344.164444,0.00040173,2]
[340102320,1728547847716,-500.0,0.00040402,5]
[340102321,1728547847726,-163.660002,0.00040459,2]
[340102322,1728547847737,-500.0,0.00040547,2]
[340102323,1728547847747,-192.345866,0.00040622,2]
[340102324,1728547847757,-1500.0,0.00040646,5]
[340102325,1728547847768,-600.0,0.00040788,2]
[340102326,1728547847779,-500.0,0.00041095,2]
[340102327,1728547847789,-180.328136,0.00041096,2]
[340102328,1728547847800,-600.0,0.00041212,2]
[340102329,1728547847810,-500.0,0.00041394,120]
[340102330,1728547847820,-600.0,0.00041637,2]
[340102331,1728547847847,-500.0,0.00041643,2]
[340102332,1728547847856,-1000.0,0.00042,2]
[340102333,1728547847866,-600.0,0.00042062,2]
[340102334,1728547847876,-2651.77942288,0.00042082,2]
[340102335,1728547847887,-500.0,0.00042191,2]
[340102336,1728547847896,-985.27374458,0.00042487,2]
[340102337,1728547847905,-500.0,0.00042739,2]
[340102338,1728547847916,-500.0,0.00042763,120]
[340102339,1728547847926,-1000.0,0.00042902,2]
[340102340,1728547847935,-2000.0,0.00042987,7]
[340102341,1728547847945,-370.00446521,0.00043,120]
[340102342,1728547847955,-500.0,0.00043287,2]
[340102343,1728547847965,-1000.0,0.00043509,7]
[340102344,1728547847975,-1000.0,0.00043804,2]
[340102345,1728547847984,-500.0,0.00043835,2]
[340102346,1728547847994,-3712.14727438,0.00043953,28]
[340102347,1728547848003,-500.0,0.00044133,120]
[340102348,1728547848013,-396.28004042,0.00044383,2]
[340102349,1728547848023,-2651.77942288,0.00044486,2]
[340102350,1728547848033,-400.0,0.00044658,2]
[340102351,1728547848043,-1000.0,0.00044706,2]
[340102352,1728547848052,-1000.0,0.00044879,7]
[340102353,1728547848063,-272.66017624,0.00045,2]
[340102354,1728547848076,-500.0,0.00045503,120]
[340102355,1728547848086,-179.79382728,0.00045578,7]
[340102356,1728547848096,-1000.0,0.00045608,2]
[340102357,1728547848107,-1000.0,0.00046249,7]
[340102358,1728547848117,-1000.0,0.0004651,2]
[340102359,1728547848127,-500.0,0.00046873,120]
[340102360,1728547848137,-2651.77942288,0.00046891,2]
[340102361,1728547848147,-1000.0,0.00047412,2]
[340102362,1728547848157,-1000.0,0.00047618,7]
[340102363,1728547848167,-3712.14727438,0.00048034,28]
[340102364,1728547848178,-500.0,0.00048243,120]
[340102365,1728547848187,-1000.0,0.00048314,2]
[340102366,1728547848197,-1000.0,0.00048988,7]
[340102367,1728547848207,-1000.0,0.00049216,2]
[340102368,1728547848218,-2651.77942288,0.00049295,2]
[340102369,1728547848227,-400.0,0.00049517,2]
[340102370,1728547848237,-500.0,0.00049613,120]
[340102371,1728547848247,-9054.18274649,0.0005,2]
[340102372,1728547848258,-201.0,0.0005,2]
[340102373,1728547848270,-500.0,0.00050983,120]
[340102374,1728547848280,-2651.77942288,0.000517,2]
[340102375,1728547848290,-3712.14727438,0.00052116,28]
[340102376,1728547848300,-500.0,0.00052352,120]
[340102377,1728547848310,-676.48264868,0.00053722,120]
[340102378,1728547848320,-2651.77942288,0.00054104,2]
[340102379,1728547848332,-400.0,0.00054376,2]
[340102380,1728547848343,-518.0,0.000547,120]
[340102381,1728547848353,-500.0,0.00054794,2]
[340102382,1728547848362,-500.0,0.00054794,2]
[340102383,1728547848372,-500.0,0.00054794,2]
[340102384,1728547848382,-500.0,0.00054794,2]
[340102385,1728547848392,-500.0,0.00054794,2]
[340102386,1728547848402,-500.0,0.00054794,2]
[340102387,1728547848413,-500.0,0.00054794,2]
[340102388,1728547848423,-435.869872,0.00054794,2]
[340102389,1728547848432,-500.0,0.00054794,7]
[340102390,1728547848442,-500.0,0.00054794,2]
[340102391,1728547848452,-500.0,0.00054794,2]
[340102392,1728547848463,-500.0,0.00054794,2]
[340102393,1728547848473,-500.0,0.00054794,2]
[340102394,1728547848483,-1343.78,0.00054794,2]
[340102395,1728547848493,-1343.78,0.00054794,2]
[340102396,1728547848503,-1343.78,0.00054794,2]
[340102397,1728547848514,-1343.78,0.00054794,2]
[340102398,1728547848523,-1343.78,0.00054794,2]
[340102399,1728547848533,-1343.78,0.00054794,2]
[340102400,1728547848543,-1343.78,0.00054794,2]
[340102401,1728547848553,-1343.78,0.00054794,2]
[340102402,1728547848564,-1343.78,0.00054794,2]
[340102403,1728547848576,-1343.78,0.00054794,2]
[340102404,1728547848587,-1343.78,0.00054794,2]
[340102405,1728547848597,-1343.78,0.00054794,2]
[340102406,1728547848607,-1343.78,0.00054794,2]
[340102407,1728547848617,-1343.78,0.00054794,2]
[340102408,1728547848627,-1343.78,0.00054794,2]
[340102409,1728547848637,-1343.78,0.00054794,2]
[340102410,1728547848648,-1343.78,0.00054794,2]
[340102411,1728547848658,-1343.78,0.00054794,2]
[340102412,1728547848667,-1343.78,0.00054794,2]
[340102413,1728547848677,-1343.78,0.00054794,2]
[340102414,1728547848687,-1343.78,0.00054794,2]
[340102415,1728547848698,-1343.78,0.00054794,2]
[340102416,1728547848709,-1343.78,0.00054794,2]
[340102417,1728547848718,-1343.98865303,0.00054794,2]
[340102418,1728547848730,-500.0,0.00054794,120]
[340102419,1728547848741,-888.0,0.00054794,120]
[340102420,1728547848751,-500.0,0.00054794,120]
[340102421,1728547848761,-153.90856223,0.00054794,120]
[340102422,1728547848772,-213.08545932,0.00054794,120]
[340102423,1728547848782,-222.40851932,0.00054794,120]
[340102424,1728547848793,-168.79996511,0.00054794,120]
[340102425,1728547848803,-500.0,0.00054794,120]
[340102426,1728547848813,-500.0,0.00054794,120]
[340102427,1728547848823,-506.47692669,0.00054794,120]
[340102428,1728547848835,-517.86816125,0.00054794,120]
[340102429,1728547848848,-306.0,0.00054795,120]
[340102430,1728547848859,-154.1009444,0.00054795,120]
[340102431,1728547848869,-209.799474,0.00054795,120]
[340102432,1728547848879,-826.5141483,0.00054795,120]
[340102433,1728547848890,-154.18738826,0.00054985,98]
[340102434,1728547848900,-5000.0,0.00055,55]
[340102435,1728547848910,-1998.06377083,0.00055,120]
[340102436,1728547848922,-20000.0,0.00055,120]
[340102437,1728547848932,-24708.0,0.00055,120]
[340102438,1728547848942,-503.47770275,0.00055397,120]
[340102439,1728547848952,-500.0,0.00055397,120]
[340102440,1728547848962,-428.71409277,0.00055397,120]
[340102441,1728547848972,-500.0,0.00055397,120]
[340102442,1728547848984,-500.0,0.00055397,120]
[340102443,1728547848993,-500.0,0.00055397,120]
[340102444,1728547849005,-501.02113887,0.00055397,120]
[340102445,1728547849015,-500.04405165,0.00055397,120]
[340102446,1728547849025,-500.0,0.00055397,120]
[340102447,1728547849036,-500.0,0.00055397,120]
[340102448,1728547849047,-500.0,0.00055397,120]
[340102449,1728547849058,-500.0,0.00055397,120]
[340102450,1728547849068,-500.0,0.00055397,120]
[340102451,1728547849079,-500.0,0.00055397,120]
[340102452,1728547849089,-500.0,0.00055397,120]
[340102453,1728547849099,-500.0,0.00055397,120]
[340102454,1728547849109,-500.0,0.00055397,120]
[340102455,1728547849119,-500.0,0.00055397,120]
[340102456,1728547849128,-695.94,0.00055397,120]
[340102457,1728547849138,-533.97366582,0.00055397,120]
[340102458,1728547849147,-689.47,0.00055397,120]
[340102459,1728547849157,-500.0,0.00055397,120]
[340102460,1728547849167,-506.09207994,0.00055397,120]
[340102461,1728547849177,-500.0,0.00055397,7]
[340102462,1728547849187,-500.0,0.00055397,120]
[340102463,1728547849199,-512.30317877,0.00055397,120]
[340102464,1728547849210,-500.0,0.00055397,2]
[340102465,1728547849221,-500.0,0.00055397,120]
[340102466,1728547849231,-500.0,0.00055397,120]
[340102467,1728547849242,-201.14731572,0.00055397,120]
[340102468,1728547849253,-503.44821589,0.00055397,2]
[340102469,1728547849263,-397.1416687,0.00055397,120]
[340102470,1728547849274,-500.0,0.00055397,120]
[340102471,1728547849285,-505.20211235,0.00055397,120]
[340102472,1728547849295,-500.0,0.00055397,120]
[340102473,1728547849384,-500.0,0.00055397,120]
[340102474,1728547849395,-500.0,0.00055397,120]
[340102475,1728547849405,-559.44661792,0.00055397,120]
[340102476,1728547849415,-1416.33,0.00055397,120]
[340102477,1728547849425,-500.0,0.00055397,120]
[340102478,1728547849434,-500.0,0.00055397,2]
[340102479,1728547849444,-508.84572004,0.00055397,120]
[340102480,1728547849454,-505.4646025,0.00055397,120]
[340102481,1728547849464,-500.0,0.00055397,30]
[340102482,1728547849474,-197.34085124,0.00055397,120]
[340102483,1728547849484,-500.0,0.00055397,120]
[340102484,1728547849494,-500.0,0.00055397,120]
[340102485,1728547849503,-500.0,0.00055397,120]
[340102486,1728547849514,-500.0,0.00055397,2]
[340102487,1728547849523,-1996.94,0.00055397,120]
[340102488,1728547849533,-500.0,0.00055397,120]
[340102489,1728547849543,-3321.25,0.00055397,120]
[340102490,1728547849553,-500.0,0.00055397,18]
[340102491,1728547849563,-494.6956771,0.00055397,120]
[340102492,1728547849573,-500.0,0.00055397,30]
[340102493,1728547849586,-500.0,0.00055397,120]
[340102494,1728547849596,-507.45967374,0.00055397,120]
[340102495,1728547849606,-500.0,0.00055397,120]
[340102496,1728547849617,-500.0,0.00055397,120]
[340102497,1728547849627,-500.0,0.00055397,120]
[340102498,1728547849638,-888.0,0.00055397,120]
[340102499,1728547849648,-1000.0,0.00055529,120]
[340102500,1728547849658,-1000.0,0.00055838,120]
[340102501,1728547849669,-500.0,0.00056,120]
[340102502,1728547849678,-506.6066303,0.00056,120]
[340102503,1728547849688,-500.0,0.00056,120]
[340102504,1728547849697,-500.0,0.00056,120]
[340102505,1728547849706,-500.0,0.00056,120]
[340102506,1728547849716,-500.0,0.00056,120]
[340102507,1728547849725,-500.0,0.00056,120]
[340102508,1728547849735,-500.0,0.00056,120]
[340102509,1728547849745,-500.0,0.00056,120]
[340102510,1728547849755,-500.0,0.00056,120]
[340102511,1728547849765,-500.0,0.00056,120]
[340102512,1728547849775,-500.0,0.00056,120]
[340102513,1728547849785,-500.0,0.00056,120]
[340102514,1728547849794,-500.0,0.00056,120]
[340102515,1728547849804,-695.94,0.00056,120]
[340102516,1728547849813,-689.47,0.00056,120]
[340102517,1728547849823,-500.0,0.00056,120]
[340102518,1728547849834,-500.0,0.00056,7]
[340102519,1728547849847,-500.0,0.00056,120]
[340102520,1728547849859,-500.0,0.00056,2]
[340102521,1728547849868,-500.0,0.00056,120]
[340102522,1728547849878,-395.1956173,0.00056,120]
[340102523,1728547849889,-500.0,0.00056,120]
[340102524,1728547849899,-500.0,0.00056,120]
[340102525,1728547849910,-500.0,0.00056,120]
[340102526,1728547849920,-500.0,0.00056,120]
[340102527,1728547849933,-1416.33,0.00056,120]
[340102528,1728547849943,-587.83332871,0.00056,120]
[340102529,1728547849953,-500.0,0.00056,2]
[340102530,1728547849962,-500.0,0.00056,30]
[340102531,1728547849972,-213.28104044,0.00056,120]
[340102532,1728547849982,-500.0,0.00056,120]
[340102533,1728547849991,-500.0,0.00056,120]
[340102534,1728547850001,-500.0,0.00056,2]
[340102535,1728547850012,-1996.94,0.00056,120]
[340102536,1728547850022,-539.86822306,0.00056,120]
[340102537,1728547850031,-3321.25,0.00056,120]
[340102538,1728547850041,-500.0,0.00056,18]
[340102539,1728547850050,-159.51680719,0.00056,30]
[340102540,1728547850060,-500.0,0.00056,120]
[340102541,1728547850070,-500.0,0.00056,120]
[340102542,1728547850081,-500.0,0.00056,120]
[340102543,1728547850091,-500.0,0.00056,120]
[340102544,1728547850101,-888.0,0.00056,120]
[340102545,1728547850111,-500.0,0.00056,120]
[340102546,1728547850121,-853.51868553,0.00056176,120]
[340102547,1728547850131,-3712.14727438,0.00056197,28]
[340102548,1728547850140,-885.34,0.000562,7]
[340102549,1728547850150,-344.164444,0.00056309,120]
[340102550,1728547850160,-1000.0,0.00056431,120]
[340102551,1728547850170,-2651.77942288,0.00056509,2]
[340102552,1728547850180,-500.0,0.00056602,120]
[340102553,1728547850190,-500.0,0.00056602,120]
[340102554,1728547850200,-500.0,0.00056602,120]
[340102555,1728547850210,-500.0,0.00056602,120]
[340102556,1728547850220,-555.95213449,0.00056602,120]